bitfinex/quotes_BTCUSD_20240901
["timestamp","ask_amount","ask_price","bid_price","bid_amount"]
[1725179105060,0.000818,58508.0,58507.0,2.04373912]
[1725179105618,0.02762134,58521.0,58507.0,2.04373912]
[1725179105619,0.02762134,58521.0,58519.0,0.2043]
[1725179105870,0.02762134,58521.0,58519.0,0.49621298]
[1725179106337,0.02762134,58521.0,58519.0,1.52151998]
[1725179106589,0.000818,58521.0,58519.0,1.52151998]
[1725179106827,0.000818,58521.0,58519.0,1.52651998]
[1725179107055,0.000818,58521.0,58519.0,1.53651998]
[1725179107295,0.000818,58521.0,58519.0,1.69017198]
[1725179108632,0.000818,58521.0,58519.0,1.70417198]
[1725179109550,0.000818,58521.0,58519.0,1.70075548]
[1725179109975,0.000818,58521.0,58519.0,1.606143]
[1725179110187,0.000818,58521.0,58519.0,1.70075548]
[1725179118998,0.000818,58521.0,58519.0,1.68675548]
[1725179119884,0.000818,58521.0,58519.0,1.70075548]
[1725179125522,0.000818,58521.0,58519.0,1.69875548]
[1725179125819,0.000818,58521.0,58519.0,1.70075548]
[1725179133355,0.000818,58521.0,58519.0,1.75130504]
[1725179133578,0.000818,58521.0,58519.0,1.54709256]
[1725179133788,0.083518,58521.0,58519.0,1.15848648]
[1725179134203,0.083518,58521.0,58519.0,1.00483448]
[1725179135406,0.000818,58521.0,58519.0,1.05538404]
[1725179135849,0.000818,58521.0,58519.0,1.00483448]
[1725179136263,0.000818,58521.0,58519.0,1.00583448]
[1725179136472,0.000818,58521.0,58519.0,1.08165882]
[1725179136676,0.000818,58521.0,58519.0,1.25021046]
[1725179137500,0.000818,58521.0,58519.0,1.17438612]
[1725179138240,0.000818,58521.0,58519.0,1.61725424]
[1725179139300,0.000818,58521.0,58519.0,1.61766995]
[1725179139476,0.000818,58521.0,58519.0,1.51615512]
[1725179140394,0.000818,58521.0,58519.0,1.64304866]
[1725179141508,0.000818,58521.0,58519.0,1.51615512]
[1725179141970,0.000818,58521.0,58519.0,1.53212062]
[1725179142413,0.000818,58521.0,58519.0,1.51615512]
[1725179142667,0.000818,58521.0,58519.0,1.53212061]
[1725179144186,0.000718,58520.0,58519.0,1.53212061]
[1725179144399,0.000718,58520.0,58519.0,1.51615512]
[1725179145470,0.000718,58520.0,58519.0,1.66842737]
[1725179146329,0.000718,58520.0,58519.0,1.66742737]
[1725179146530,0.000718,58520.0,58519.0,1.51515512]
[1725179149726,0.000718,58520.0,58519.0,1.51615512]
[1725179150320,0.000718,58520.0,58519.0,1.66923147]
[1725179151410,0.000718,58520.0,58519.0,1.52615512]
[1725179151618,0.000718,58520.0,58519.0,1.86792412]
[1725179151824,0.000718,58520.0,58519.0,1.63305512]
[1725179152256,0.000718,58520.0,58519.0,1.97482412]
[1725179152503,0.000718,58520.0,58519.0,1.63305512]
[1725179155662,0.000718,58520.0,58519.0,1.52615512]
[1725179156532,0.000718,58520.0,58519.0,1.52705382]
[1725179165570,0.000718,58520.0,58519.0,1.2618897]
[1725179165784,0.000718,58520.0,58519.0,1.35750218]
[1725179167054,0.000718,58520.0,58519.0,1.35850218]
[1725179168975,0.000718,58520.0,58519.0,1.35750218]
[1725179170722,0.14743715,58536.0,58535.0,0.0038]
[1725179170932,0.14743715,58536.0,58535.0,0.0318]
[1725179172038,0.14743715,58536.0,58535.0,0.0418]
[1725179172254,0.14743715,58536.0,58535.0,0.0468]
[1725179172467,0.48910715,58536.0,58535.0,0.0238]
[1725179172714,0.20789401,58536.0,58535.0,0.0238]
[1725179173147,0.54956401,58536.0,58535.0,0.0238]
[1725179173361,0.89123401,58536.0,58535.0,0.0238]
[1725179173782,1.08423401,58536.0,58535.0,0.0238]
[1725179176824,0.74256401,58536.0,58535.0,0.0238]
[1725179177668,0.76936181,58536.0,58535.0,0.03564125]
[1725179178954,0.66046181,58536.0,58535.0,0.03564125]
[1725179179210,0.66046181,58536.0,58535.0,0.91782825]
[1725179179211,0.0267978,58536.0,58535.0,0.91782825]
[1725179179434,0.000818,58537.0,58536.0,0.862975]
[1725179179640,0.000818,58537.0,58536.0,1.53636295]
[1725179180509,0.000818,58537.0,58536.0,1.45983296]
[1725179180722,0.000818,58537.0,58536.0,1.338745]
[1725179180930,0.000818,58537.0,58536.0,1.41527499]
[1725179181362,0.000818,58537.0,58536.0,1.31417499]
[1725179181574,0.000818,58537.0,58536.0,1.237645]
[1725179182674,0.000818,58537.0,58536.0,1.33961442]
[1725179182881,0.000818,58537.0,58536.0,1.35361442]
[1725179183552,0.000818,58537.0,58536.0,1.251645]
[1725179183772,0.000818,58537.0,58536.0,1.250645]
[1725179184172,0.000818,58537.0,58536.0,1.33928852]
[1725179184689,0.000818,58537.0,58536.0,1.41570942]
[1725179186652,0.000818,58537.0,58536.0,1.33928852]
[1725179189578,0.000818,58537.0,58536.0,1.39020272]
[1725179194662,0.000818,58537.0,58536.0,1.33928852]
[1725179195050,0.000818,58537.0,58536.0,1.251645]
[1725179197770,0.000818,58537.0,58536.0,1.250645]
[1725179199796,0.000818,58537.0,58536.0,1.251645]
[1725179205754,0.000818,58537.0,58536.0,0.0278]
[1725179205998,0.180318,58537.0,58536.0,0.0278]
[1725179206731,0.35115,58537.0,58536.0,0.0278]
[1725179207144,0.35115,58537.0,58536.0,0.0286998]
[1725179208365,0.692814,58537.0,58536.0,0.0136998]
[1725179208829,0.692814,58537.0,58536.0,0.0276998]
[1725179209247,0.71961092,58537.0,58536.0,0.0276998]
[1725179209459,1.06127492,58537.0,58536.0,0.0286998]
[1725179213614,1.06127492,58537.0,58536.0,0.0186998]
[1725179213615,1.40293892,58537.0,58536.0,0.0186998]
[1725179216755,1.06127492,58537.0,58536.0,0.0196998]
[1725179218371,1.05900816,58537.0,58536.0,0.0196998]
[1725179219009,1.03221124,58537.0,58536.0,0.0196998]
[1725179219991,1.03302924,58537.0,58536.0,0.0196998]
[1725179221702,1.05982708,58537.0,58536.0,0.0196998]
[1725179224439,1.03302924,58537.0,58536.0,0.0196998]
[1725179226095,1.37469324,58537.0,58536.0,0.0196998]
[1725179227709,1.40149094,58537.0,58536.0,0.0196998]
[1725179230473,1.37469324,58537.0,58536.0,0.0196998]
[1725179233828,1.40149107,58537.0,58536.0,0.0196998]
[1725179235431,1.40149107,58537.0,58536.0,0.0186998]
[1725179241957,1.22343983,58537.0,58536.0,0.0186998]
[1725179245189,1.196642,58537.0,58536.0,0.0186998]
[1725179247755,1.196642,58537.0,58536.0,0.0196998]
[1725179248412,1.22344026,58537.0,58536.0,0.0196998]
[1725179250228,1.22344026,58537.0,58536.0,0.0056998]
[1725179251720,1.22444026,58537.0,58536.0,0.0186998]
[1725179257073,1.22444026,58537.0,58536.0,0.0195996]
[1725179259656,0.98546458,58537.0,58536.0,0.0195996]
[1725179260362,1.15629658,58537.0,58536.0,0.0195996]
[1725179262113,1.12949832,58537.0,58536.0,0.0195996]
[1725179263728,1.15629654,58537.0,58536.0,0.0195996]
[1725179267831,1.12949832,58537.0,58536.0,0.0195996]
[1725179269823,1.12949832,58537.0,58536.0,0.0185996]
[1725179270849,1.15629658,58537.0,58536.0,0.0185996]
[1725179272167,1.77407306,58537.0,58536.0,0.0185996]
[1725179272407,2.50647706,58537.0,58536.0,0.0185996]
[1725179272645,2.7070036,58537.0,58536.0,0.0185996]
[1725179273072,2.7060036,58537.0,58536.0,0.0055996]
[1725179273529,2.7060036,58537.0,58536.0,0.0008998]
[1725179273964,2.7070036,58537.0,58536.0,0.0148998]
[1725179274420,2.7060036,58537.0,58536.0,0.0008998]
[1725179274916,2.7070036,58537.0,58536.0,0.0008998]
[1725179275125,2.7070036,58537.0,58536.0,0.0148998]
[1725179275352,2.66039306,58537.0,58536.0,0.0148998]
[1725179276011,2.66039306,58537.0,58536.0,0.0008998]
[1725179285069,1.25629658,58537.0,58536.0,0.0008998]
[1725179285279,1.25629658,58537.0,58536.0,0.0823998]
[1725179285695,1.22949832,58537.0,58536.0,0.0823998]
[1725179285912,1.2562992,58537.0,58536.0,0.0823998]
[1725179287674,1.22949832,58537.0,58536.0,0.0823998]
[1725179288250,1.22949832,58537.0,58536.0,0.1898998]
[1725179289028,1.22949832,58537.0,58536.0,0.0823998]
[1725179289256,1.25629799,58537.0,58536.0,0.0823998]
[1725179294257,0.57296999,58537.0,58536.0,0.0833998]
[1725179294467,0.91463399,58537.0,58536.0,0.1908998]
[1725179295571,0.88783432,58537.0,58536.0,0.1908998]
[1725179297231,0.54617032,58537.0,58536.0,0.1908998]
[1725179297457,0.54617032,58537.0,58536.0,0.1998998]
[1725179298523,0.57296792,58537.0,58536.0,0.1998998]
[1725179301040,0.54617032,58537.0,58536.0,0.1998998]
[1725179306233,0.54617032,58537.0,58536.0,0.21988978]
[1725179308354,0.101818,58537.0,58536.0,0.1998998]
[1725179308563,0.17265,58537.0,58536.0,0.1998998]
[1725179308768,0.27265,58537.0,58536.0,0.1998998]
[1725179313667,0.17265,58537.0,58536.0,0.1998998]
[1725179317599,0.17265,58537.0,58536.0,0.1988998]
[1725179318167,0.17265,58537.0,58536.0,0.1998998]
[1725179325896,0.17265,58537.0,58536.0,0.1988998]
[1725179326094,0.001818,58537.0,58536.0,0.1988998]
[1725179326326,0.001818,58537.0,58536.0,0.1998998]
[1725179327332,0.001818,58537.0,58536.0,0.1988998]
[1725179327851,0.001818,58537.0,58536.0,0.1998998]
[1725179328755,0.17265,58537.0,58536.0,0.1998998]
[1725179329655,0.341642,58541.0,58536.0,0.1998998]
[1725179329656,0.00818,58546.0,58545.0,1.210659]
[1725179329864,0.00818,58546.0,58545.0,1.431659]
[1725179330087,0.00818,58546.0,58545.0,1.65827942]
[1725179330322,0.00818,58546.0,58545.0,1.59191581]
[1725179330556,0.00818,58546.0,58545.0,1.69360092]
[1725179331231,0.01118,58546.0,58545.0,1.69460092]
[1725179331487,0.02118,58546.0,58545.0,1.69560092]
[1725179331697,0.02118,58546.0,58545.0,1.67013242]
[1725179331903,0.00818,58546.0,58545.0,1.66813242]
[1725179332127,0.00818,58546.0,58545.0,1.59191581]
[1725179332341,0.00918,58546.0,58545.0,1.61991581]
[1725179332792,0.00818,58546.0,58545.0,1.60591581]
[1725179333003,0.00918,58546.0,58545.0,1.69609174]
[1725179333629,0.00918,58546.0,58545.0,1.61991581]
[1725179334058,0.00918,58546.0,58545.0,1.60591581]
[1725179334268,0.00918,58546.0,58545.0,1.60691581]
[1725179334486,0.00918,58546.0,58545.0,1.67165851]
[1725179335601,0.00918,58546.0,58545.0,1.62091581]
[1725179341394,0.00918,58546.0,58545.0,1.61891581]
[1725179341608,0.00918,58546.0,58545.0,1.469659]
[1725179341824,0.00918,58546.0,58545.0,1.471659]
[1725179342690,0.00918,58546.0,58545.0,1.43787148]
[1725179343186,0.00918,58546.0,58545.0,1.09625448]
[1725179343406,0.00918,58546.0,58545.0,1.07325448]
[1725179344196,0.00918,58546.0,58545.0,0.038]
[1725179345220,0.00918,58546.0,58545.0,0.024]
[1725179345423,0.00918,58546.0,58545.0,0.047]
[1725179345641,0.00918,58546.0,58545.0,0.061]
[1725179346290,0.520596,58546.0,58545.0,0.033]
[1725179346490,0.265785,58546.0,58545.0,0.033]
[1725179346695,0.266785,58546.0,58545.0,0.061]
[1725179347110,0.265785,58546.0,58545.0,0.047]
[1725179347313,0.09498,58546.0,58545.0,0.047]
[1725179347579,0.09598,58546.0,58545.0,0.061]
[1725179347962,0.520571,58549.0,58548.0,0.005]
[1725179348227,0.862165,58549.0,58548.0,0.009]
[1725179350015,0.862165,58549.0,58548.0,0.02]
[1725179351192,0.976565,58549.0,58548.0,0.027]
[1725179351201,0.976565,58549.0,58548.0,0.024]
[1725179351202,1.318159,58549.0,58548.0,0.024]
[1725179351927,1.418159,58549.0,58548.0,0.024]
[1725179352828,1.418159,58549.0,58548.0,0.224]
[1725179355812,2.54836,58549.0,58548.0,0.224]
[1725179356018,2.25181118,58549.0,58548.0,0.224]
[1725179356251,2.34642366,58549.0,58548.0,0.224]
[1725179356679,2.68801766,58549.0,58548.0,0.212]
[1725179356887,2.64397248,58549.0,58548.0,0.212]
[1725179357098,2.64997248,58549.0,58548.0,0.213]
[1725179357314,2.64897248,58549.0,58548.0,0.201]
[1725179357796,2.64297248,58549.0,58548.0,0.2]
[1725179358038,2.64297248,58549.0,58548.0,0.201]
[1725179358039,2.65297248,58549.0,58548.0,0.201]
[1725179358253,2.64897248,58549.0,58548.0,0.201]
[1725179358676,2.65897248,58549.0,58548.0,0.202]
[1725179358930,2.65797248,58549.0,58548.0,0.202]
[1725179362301,2.31637848,58549.0,58548.0,0.202]
[1725179363764,1.661353,58549.0,58548.0,0.202]
[1725179363991,1.319759,58549.0,58548.0,0.202]
[1725179368673,1.34655469,58549.0,58548.0,0.202]
[1725179370464,1.319759,58549.0,58548.0,0.202]
[1725179370882,1.3465547,58549.0,58548.0,0.202]
[1725179371106,1.36073464,58549.0,58548.0,0.202]
[1725179371340,1.58341864,58549.0,58548.0,0.202]
[1725179371979,1.92501264,58549.0,58548.0,0.202]
[1725179374445,2.08237658,58549.0,58548.0,0.202]
[1725179377356,1.91119258,58549.0,58548.0,0.202]
[1725179377570,3.03071158,58549.0,58548.0,0.202]
[1725179379951,3.03071158,58549.0,58548.0,0.2028998]
[1725179380602,2.59950688,58549.0,58548.0,0.2028998]
[1725179382611,2.54800688,58549.0,58548.0,0.2028998]
[1725179383645,2.57480333,58549.0,58548.0,0.2028998]
[1725179384651,2.90023733,58549.0,58548.0,0.2028998]
[1725179385876,2.90123733,58549.0,58548.0,0.2028998]
[1725179386997,2.90123733,58549.0,58548.0,0.18818324]
[1725179387224,2.90123733,58549.0,58539.0,0.0008998]
[1725179387225,0.5,58540.0,58539.0,0.0008998]
[1725179387450,5.86387812,58540.0,58539.0,0.0008998]
[1725179387673,6.18495812,58540.0,58539.0,8e-07]
[1725179387883,3.12086693,58540.0,58539.0,8e-07]
[1725179388327,3.05800983,58540.0,58539.0,8e-07]
[1725179388998,3.05800983,58540.0,58536.0,0.0008998]
[1725179388999,1.995152,58537.0,58536.0,6e-07]
[1725179389208,2.18965884,58537.0,58536.0,6e-07]
[1725179390348,2.25266246,58537.0,58536.0,6e-07]
[1725179390982,2.26666246,58537.0,58536.0,6e-07]
[1725179391389,2.26566246,58537.0,58536.0,6e-07]
[1725179391844,2.27966246,58537.0,58536.0,6e-07]
[1725179393307,2.27966246,58537.0,58513.0,0.0058998]
[1725179393308,2.27966246,58537.0,58519.0,7e-07]
[1725179393309,1.420307,58520.0,58519.0,7e-07]
[1725179393579,1.420307,58520.0,58513.0,0.0008998]
[1725179393580,1.020697,58514.0,58513.0,0.0008998]
[1725179393779,2.35792429,58514.0,58513.0,0.0008998]
[1725179393986,2.75523139,58514.0,58513.0,0.0008998]
[1725179394418,2.80433139,58514.0,58513.0,0.0008998]
[1725179394627,6.73532739,58514.0,58513.0,0.0008998]
[1725179395266,6.73532739,58514.0,58492.0,0.008]
[1725179395267,2.380081,58508.0,58493.0,0.0846]
[1725179395485,6.18774446,58508.0,58493.0,0.0846]
[1725179395715,3.07109,58508.0,58493.0,0.0846]
[1725179395941,3.22860046,58508.0,58493.0,0.0846]
[1725179396580,3.01453995,58508.0,58493.0,0.0846]
[1725179396990,2.32957595,58508.0,58493.0,0.0846]
[1725179397195,3.01087295,58508.0,58493.0,0.0846]
[1725179398015,3.01887295,58508.0,58493.0,0.0846]
[1725179398417,3.35270595,58508.0,58493.0,0.0846]
[1725179398651,3.34172295,58508.0,58493.0,0.0846]
[1725179398864,3.37020377,58508.0,58493.0,0.0846]
[1725179399050,3.35620377,58508.0,58493.0,0.0846]
[1725179400516,3.27783677,58508.0,58504.0,0.0846]
[1725179400728,3.25101928,58508.0,58504.0,0.0846]
[1725179401155,3.26501928,58508.0,58500.0,0.0846]
[1725179401600,3.25101928,58508.0,58500.0,0.0846]
[1725179402025,2.92118628,58508.0,58500.0,0.0846]
[1725179402267,2.18508928,58508.0,58500.0,0.0846]
[1725179402477,2.06865428,58508.0,58500.0,0.0846]
[1725179402690,2.06865428,58508.0,58507.0,0.1050998]
[1725179402691,2.06165428,58508.0,58507.0,0.1050998]
[1725179402901,1.96984528,58508.0,58507.0,0.1896998]
[1725179404066,1.82423928,58508.0,58507.0,0.1896998]
[1725179404264,1.66672882,58508.0,58507.0,0.1896998]
[1725179404954,1.65272882,58508.0,58507.0,0.1896998]
[1725179405159,1.31089582,58508.0,58507.0,0.1896998]
[1725179405579,1.65272882,58508.0,58507.0,0.1896998]
[1725179405796,1.66672882,58508.0,58507.0,0.1896998]
[1725179405978,1.78195603,58508.0,58507.0,0.1896998]
[1725179406401,1.76795603,58508.0,58507.0,0.1896998]
[1725179406607,1.79477104,58508.0,58507.0,0.1896998]
[1725179406825,1.92352504,58508.0,58507.0,0.1896998]
[1725179407711,1.86801594,58508.0,58507.0,0.1896998]
[1725179408073,1.86801594,58508.0,58489.0,0.0008998]
[1725179408074,1.538721,58490.0,58489.0,0.0008998]
[1725179408319,1.97055746,58490.0,58489.0,0.0008998]
[1725179408634,2.07155746,58490.0,58489.0,0.0008998]
[1725179408774,2.15389051,58490.0,58489.0,0.0008998]
[1725179408991,1.32360695,58490.0,58489.0,0.1901998]
[1725179410292,1.67954495,58490.0,58489.0,0.1901998]
[1725179410513,1.310783,58490.0,58489.0,0.1901998]
[1725179411198,1.652721,58490.0,58489.0,0.1901998]
[1725179411890,1.638721,58490.0,58489.0,0.1901998]
[1725179412339,1.644721,58490.0,58489.0,0.1901998]
[1725179413490,1.70443911,58490.0,58489.0,0.0008998]
[1725179413726,1.80897011,58490.0,58489.0,0.0008998]
[1725179414831,1.83579253,58490.0,58489.0,0.0008998]
[1725179415324,1.83679253,58490.0,58489.0,0.0008998]
[1725179415792,2.17773053,58490.0,58489.0,0.0008998]
[1725179416002,2.18573053,58490.0,58489.0,0.0008998]
[1725179417138,2.17973053,58490.0,58489.0,0.0008998]
[1725179417577,2.23523963,58490.0,58489.0,0.0008998]
[1725179418254,2.06427063,58490.0,58489.0,0.0008998]
[1725179418475,2.23523963,58490.0,58489.0,0.0008998]
[1725179418702,2.24834953,58490.0,58489.0,0.0008998]
[1725179418939,2.18863142,58490.0,58489.0,0.0008998]
[1725179419165,1.83969342,58490.0,58489.0,0.0008998]
[1725179419395,1.85269342,58490.0,58489.0,0.0008998]
[1725179419636,1.83969342,58490.0,58489.0,0.0008998]
[1725179420331,2.01120388,58490.0,58489.0,0.0008998]
[1725179420582,1.96938146,58490.0,58489.0,0.0008998]
[1725179421274,1.98338146,58490.0,58489.0,0.0008998]
[1725179422878,1.96938146,58490.0,58489.0,0.0008998]
[1725179423153,2.02909957,58490.0,58489.0,0.0008998]
[1725179423389,2.09760867,58490.0,58489.0,0.0008998]
[1725179423621,2.02909957,58490.0,58489.0,0.0008998]
[1725179424076,2.03609957,58490.0,58489.0,0.0008998]
[1725179424318,1.539802,58487.0,58486.0,0.0008998]
[1725179424574,3.29931,58487.0,58486.0,0.0008998]
[1725179424822,4.964433,58487.0,58486.0,0.0008998]
[1725179425059,5.09550547,58487.0,58486.0,0.0008998]
[1725179425941,5.49297057,58487.0,58486.0,0.0008998]
[1725179426364,0.849044,58472.0,58467.0,0.00012]
[1725179426596,1.5186191,58472.0,58467.0,0.00012]
[1725179426822,2.2027071,58472.0,58467.0,0.00012]
[1725179427024,4.16386557,58472.0,58467.0,0.00012]
[1725179427248,4.50590957,58472.0,58467.0,0.00012]
[1725179428368,4.51990957,58472.0,58467.0,0.00012]
[1725179429227,2.82850993,58472.0,58467.0,0.00012]
[1725179429452,2.62472346,58472.0,58467.0,0.00012]
[1725179429654,2.62472346,58472.0,58471.0,0.0012998]
[1725179430077,2.61072346,58472.0,58471.0,0.0012998]
[1725179430527,2.62472346,58472.0,58471.0,0.0012998]
[1725179430996,2.62472346,58472.0,58471.0,0.1081998]
[1725179430997,2.61072346,58472.0,58471.0,0.1081998]
[1725179431191,2.62472224,58472.0,58471.0,0.1081998]
[1725179431412,2.63872224,58472.0,58471.0,0.1081998]
[1725179433363,0.179036,58467.0,58466.0,0.60687387]
[1725179433585,5.46443056,58467.0,58466.0,0.0673995]
[1725179433802,6.105446,58467.0,58466.0,0.0494995]
[1725179434009,6.447519,58467.0,58466.0,5e-07]
[1725179434208,2.602795,58467.0,58466.0,5e-07]
[1725179434708,2.616795,58467.0,58466.0,5e-07]
[1725179435138,0.501,58462.0,58461.0,1e-06]
[1725179435356,0.501,58462.0,58460.0,0.008987]
[1725179435357,0.521162,58461.0,58460.0,0.008987]
[1725179435593,1.768489,58461.0,58460.0,0.008987]
[1725179435827,2.3264089,58461.0,58460.0,0.008987]
[1725179436301,2.6675169,58461.0,58460.0,0.008987]
[1725179436517,2.4109829,58461.0,58460.0,0.008987]
[1725179436725,2.43782055,58461.0,58460.0,0.008987]
[1725179437386,2.43882055,58461.0,58460.0,0.008987]
[1725179437841,2.45284104,58461.0,58460.0,0.008987]
[1725179438541,2.46684104,58461.0,58460.0,0.008987]
[1725179438745,2.45284104,58461.0,58460.0,0.008987]
[1725179439162,2.46684104,58461.0,58460.0,0.008987]
[1725179439805,2.80894904,58461.0,58460.0,0.008987]
[1725179440027,2.46684104,58461.0,58460.0,0.008987]
[1725179440262,2.46684104,58461.0,58448.0,0.008998]
[1725179440263,0.007,58453.0,58448.0,0.008998]
[1725179440499,4.9281179,58453.0,58448.0,0.008998]
[1725179440771,4.6900099,58453.0,58448.0,0.008998]
[1725179441004,3.05004146,58453.0,58448.0,0.008998]
[1725179441211,2.96214046,58453.0,58452.0,0.003998]
[1725179441423,2.96914046,58453.0,58452.0,0.003998]
[1725179441852,2.97014046,58453.0,58452.0,0.003998]
[1725179442895,2.98414046,58453.0,58452.0,0.003998]
[1725179443090,2.98314046,58453.0,58452.0,0.003998]
[1725179443325,2.79839546,58453.0,58452.0,0.003998]
[1725179444604,2.78439546,58453.0,58452.0,0.003998]
[1725179444824,2.87053787,58453.0,58452.0,0.003998]
[1725179445046,2.55595041,58453.0,58452.0,0.003998]
[1725179445260,2.71346087,58453.0,58452.0,0.003998]
[1725179445971,2.71346087,58453.0,58436.0,0.008]
[1725179445972,1.197973,58432.0,58431.0,1e-06]
[1725179446212,0.85587,58420.0,58419.0,0.1069]
[1725179446433,1.997827,58420.0,58419.0,0.1069]
[1725179446646,0.613522,58420.0,58419.0,0.1119]
[1725179446864,0.64037424,58420.0,58419.0,0.1119]
[1725179447524,0.98272224,58420.0,58419.0,0.1119]
[1725179448180,1.32507024,58420.0,58419.0,0.1069]
[1725179448401,1.32507024,58420.0,58419.0,0.1987]
[1725179448402,0.98372224,58420.0,58419.0,0.1987]
[1725179448630,0.98272224,58420.0,58419.0,0.1987]
[1725179449272,0.98272224,58420.0,58419.0,0.1937]
[1725179449482,0.98272224,58420.0,58419.0,0.1987]
[1725179450589,0.95587,58420.0,58419.0,0.1987]
[1725179450822,0.613522,58420.0,58419.0,0.1997]
[1725179451060,0.613522,58420.0,58419.0,0.21997]
[1725179451265,0.271174,58420.0,58419.0,0.1997]
[1725179451482,0.1,58420.0,58419.0,0.2027]
[1725179451702,0.342336,58423.0,58422.0,0.006]
[1725179451910,0.342336,58423.0,58422.0,0.009]
[1725179452116,0.855837,58423.0,58422.0,0.2086]
[1725179452337,1.198173,58423.0,58422.0,0.2076]
[1725179453175,1.299173,58423.0,58422.0,0.2076]
[1725179453606,1.28691725,58423.0,58422.0,0.2076]
[1725179453831,1.28691725,58423.0,58422.0,0.2046]
[1725179454032,1.28691725,58423.0,58422.0,0.2076]
[1725179454894,1.28591725,58423.0,58422.0,0.2076]
[1725179455522,1.28591725,58423.0,58422.0,0.2046]
[1725179457021,1.28591725,58423.0,58419.0,0.0009009]
[1725179457022,1.198218,58420.0,58419.0,0.0009009]
[1725179457241,1.354132,58420.0,58419.0,0.0009009]
[1725179457489,1.79648,58420.0,58419.0,0.0009009]
[1725179457706,0.613522,58420.0,58419.0,0.2085009]
[1725179458577,0.271174,58420.0,58419.0,0.2085009]
[1725179458800,0.271174,58420.0,58419.0,0.2095009]
[1725179459213,0.613522,58420.0,58419.0,0.2095009]
[1725179459890,0.1,58420.0,58419.0,0.2095009]
[1725179460119,0.171163,58424.0,58423.0,0.2086]
[1725179460332,0.271163,58424.0,58423.0,0.2086]
[1725179460776,0.613488,58424.0,58423.0,0.2076]
[1725179461468,0.613488,58424.0,58423.0,0.2086]
[1725179464396,0.955813,58424.0,58423.0,0.2076]
[1725179464612,0.98266095,58424.0,58423.0,0.2076]
[1725179465507,0.29801095,58424.0,58423.0,0.2076]
[1725179465921,0.64033595,58424.0,58423.0,0.2086]
[1725179466139,0.29801095,58424.0,58423.0,0.2086]
[1725179467624,0.29801095,58424.0,58423.0,0.24701001]
[1725179468075,0.12684795,58424.0,58423.0,0.24701001]
[1725179468270,0.02684795,58424.0,58423.0,0.2086]
[1725179468503,0.02684795,58424.0,58423.0,0.402765]
[1725179468720,0.04475984,58424.0,58423.0,0.402765]
[1725179469198,0.04475984,58424.0,58423.0,0.745095]
[1725179469401,0.04475984,58424.0,58423.0,1.087425]
[1725179469613,0.04475984,58424.0,58423.0,0.745095]
[1725179470035,0.04575984,58424.0,58423.0,0.745095]
[1725179470270,0.04575984,58424.0,58423.0,1.24535751]
[1725179470496,0.01791189,58424.0,58423.0,1.24535751]
[1725179470918,0.01891189,58424.0,58423.0,1.24535751]
[1725179471131,0.01791189,58424.0,58423.0,1.37508463]
[1725179471585,0.01891189,58424.0,58423.0,1.37508463]
[1725179472682,0.01891189,58424.0,58423.0,1.24535751]
[1725179472913,0.01891189,58424.0,58423.0,1.63870031]
[1725179473147,0.01891189,58424.0,58423.0,1.58768751]
[1725179473575,0.01791189,58424.0,58423.0,1.64081358]
[1725179473785,0.000818,58430.0,58429.0,1.065037]
[1725179474014,0.000818,58430.0,58429.0,1.58526451]
[1725179474455,0.000818,58430.0,58429.0,1.63639736]
[1725179474664,0.000818,58430.0,58429.0,1.58426451]
[1725179474863,0.000818,58430.0,58429.0,1.63440445]
[1725179475082,0.000818,58430.0,58429.0,1.80395609]
[1725179475536,0.000818,58430.0,58429.0,1.75281615]
[1725179475754,0.000818,58430.0,58429.0,1.80395609]
[1725179476179,0.000818,58430.0,58429.0,1.80595609]
[1725179477068,0.001818,58430.0,58429.0,1.80395609]
[1725179477709,0.001818,58430.0,58429.0,1.80295609]
[1725179479270,0.001818,58430.0,58429.0,1.80395609]
[1725179479508,0.001818,58430.0,58429.0,1.80295609]
[1725179479724,0.001818,58430.0,58429.0,1.63440445]
[1725179479939,0.17111,58442.0,58441.0,0.1172]
[1725179481256,0.442202,58445.0,58441.0,0.1172]
[1725179481257,0.513312,58444.0,58443.0,0.007]
[1725179482158,0.613312,58444.0,58443.0,0.006]
[1725179482585,0.271105,58444.0,58443.0,0.007]
[1725179483880,0.271105,58444.0,58443.0,0.006]
[1725179484080,0.272105,58444.0,58443.0,0.006]
[1725179484509,0.29894509,58444.0,58443.0,0.007]
[1725179487005,0.12784009,58444.0,58443.0,0.007]
[1725179488292,0.02784009,58444.0,58443.0,0.4436607]
[1725179488517,0.02784009,58444.0,58443.0,0.7858737]
[1725179488744,0.02784009,58444.0,58443.0,1.4922997]
[1725179488963,0.02784009,58444.0,58443.0,1.4952997]
[1725179489193,0.001,58444.0,58443.0,1.4952997]
[1725179489721,0.02683424,58456.0,58455.0,0.2062]
[1725179490375,0.02683424,58456.0,58455.0,0.2052]
[1725179490589,0.02683424,58456.0,58455.0,0.29393725]
[1725179491254,0.171066,58457.0,58456.0,0.001]
[1725179491468,0.271066,58457.0,58456.0,0.004]
[1725179491683,0.271066,58457.0,58456.0,0.06629458]
[1725179491902,0.271066,58457.0,58456.0,0.06529458]
[1725179492809,0.272066,58457.0,58456.0,0.06529458]
[1725179494390,0.272066,58457.0,58455.0,0.28993725]
[1725179494391,0.614197,58457.0,58455.0,0.006]
[1725179494608,0.955342,58456.0,58455.0,0.003]
[1725179494825,1.297479,58456.0,58455.0,0.003]
[1725179495953,0.217453,58456.0,58449.0,0.006]
[1725179496184,0.217453,58456.0,58455.0,0.002]
[1725179496185,0.37921188,58456.0,58455.0,0.002]
[1725179496412,1.8703421,58456.0,58455.0,0.002]
[1725179496630,1.792153,58456.0,58455.0,0.002]
[1725179496861,0.855415,58451.0,58450.0,0.003]
[1725179497079,0.955415,58451.0,58450.0,0.003]
[1725179497364,1.297581,58451.0,58450.0,0.003]
[1725179498060,1.197602,58450.0,58449.0,0.008]
[1725179499163,1.197602,58450.0,58449.0,0.006]
[1725179499615,1.22444174,58450.0,58449.0,0.006]
[1725179500232,1.22544174,58450.0,58449.0,0.007]
[1725179501015,1.22544174,58450.0,58449.0,0.004]
[1725179501212,1.22544174,58450.0,58449.0,0.001]
[1725179501213,1.97803988,58450.0,58449.0,0.001]